bitfinex/quotes_SOLUSD_20240703
["timestamp","ask_amount","ask_price","bid_price","bid_amount"]
[1720011891034,6.34000947,141.52,141.39,0.34]
[1720011891257,6.34000947,141.53,141.4,6.6598]
[1720011891454,6.34000947,141.53,141.41,0.17]
[1720011892042,6.34000947,141.53,141.41,0.34]
[1720011892460,6.34000947,141.53,141.41,0.17]
[1720011893156,0.17,141.52,141.42,16.0995]
[1720011893363,20.17,141.52,141.43,0.17]
[1720011893694,20.17,141.52,141.42,16.0995]
[1720011893695,20.0,141.52,141.42,16.0995]
[1720011893972,20.0,141.53,141.42,16.0995]
[1720011894163,9.58349755,141.52,141.42,16.0995]
[1720011894340,20.0,141.51,141.42,16.0995]
[1720011894545,26.65056502,141.51,141.42,16.0995]
[1720011894765,20.0,141.51,141.43,6.4667]
[1720011894972,15.4547,141.58,141.44,1.41354844]
[1720011895266,18.38763253,141.58,141.44,19.08834844]
[1720011895450,18.38763253,141.58,141.45,0.17]
[1720011895656,18.38763253,141.58,141.45,0.34]
[1720011895857,37.94,141.57,141.46,0.17]
[1720011896057,37.94,141.57,141.44,0.34]
[1720011896761,0.17,141.56,141.44,0.34]
[1720011897149,20.17,141.56,141.44,0.17]
[1720011897352,6.65056502,141.55,141.44,0.17]
[1720011897561,37.94,141.53,141.43,6.4667]
[1720011897769,20.0,141.52,141.43,6.4667]
[1720011899504,6.82056502,141.51,141.43,6.4667]
[1720011899662,20.0,141.5,141.43,6.4667]
[1720011900275,20.0,141.52,141.45,7.0693]
[1720011900482,7.41278289,141.57,141.47,6.4664]
[1720011900483,37.94,141.57,141.47,6.4664]
[1720011900787,2.93293253,141.58,141.48,0.17]
[1720011902169,37.94,141.61,141.49,21.2967]
[1720011902378,37.94,141.61,141.5,0.17]
[1720011902579,37.94,141.61,141.49,21.2967]
[1720011902769,37.94,141.61,141.5,0.34]
[1720011903160,37.94,141.61,141.5,0.17]
[1720011903363,37.94,141.61,141.49,21.2967]
[1720011903685,0.17,141.6,141.5,0.17]
[1720011904196,0.34,141.6,141.49,21.2967]
[1720011904488,37.94,141.57,141.49,21.2967]
[1720011904694,20.34,141.56,141.49,6.0993]
[1720011905606,20.34,141.56,141.46,16.6586]
[1720011905607,37.94,141.53,141.46,16.6586]
[1720011906094,20.0,141.52,141.46,16.6586]
[1720011906391,20.0,141.52,141.4,7.0717]
[1720011906392,0.34,141.51,141.42,6.3864]
[1720011906692,37.94,141.49,141.42,6.3864]
[1720011906992,20.17,141.48,141.38,6.3864]
[1720011907169,0.17,141.47,141.38,6.3864]
[1720011908491,37.94,141.45,141.38,6.3864]
[1720011908668,20.17,141.44,141.38,6.3864]
[1720011908874,20.0,141.44,141.38,6.3864]
[1720011909573,0.17,141.45,141.34,6.0409]
[1720011909884,37.94,141.42,141.34,6.0409]
[1720011910069,20.0,141.41,141.34,6.0409]
[1720011910395,37.94,141.39,141.34,6.0409]
[1720011910693,20.0,141.38,141.34,6.0409]
[1720011912084,20.0,141.41,141.34,6.0409]
[1720011912984,20.0,141.41,141.35,0.66675938]
[1720011913182,47.52349755,141.47,141.37,16.4779]
[1720011913379,47.52349755,141.47,141.39,6.2888]
[1720011913599,40.87293253,141.47,141.4,0.34]
[1720011915275,37.94,141.47,141.4,0.34]
[1720011915475,22.0248,141.58,141.4,0.17]
[1720011915703,37.94,141.53,141.44,6.1432]
[1720011915884,2.93293253,141.57,141.49,7.0676]
[1720011916077,55.7811,141.63,141.5,0.34]
[1720011916781,55.7811,141.63,141.51,0.34]
[1720011917001,55.7811,141.63,141.49,0.34]
[1720011917205,55.7811,141.63,141.5,7.0668]
[1720011917409,37.94,141.63,141.53,16.4044]
[1720011917715,37.94,141.63,141.54,0.17]
[1720011918000,37.94,141.66,141.54,0.81310882]
[1720011918178,37.94,141.66,141.54,0.34]
[1720011918373,16.4044,141.65,141.54,0.17]
[1720011918899,37.94,141.62,141.54,0.34]
[1720011919102,37.94,141.62,141.54,0.17]
[1720011919407,37.94,141.62,141.54,0.34]
[1720011920188,20.0,141.61,141.54,0.34]
[1720011920789,37.94,141.68,141.55,7.0643]
[1720011921105,37.94,141.68,141.56,0.34]
[1720011921392,37.94,141.64,141.54,0.17]
[1720011921591,57.27733253,141.68,141.54,0.17]
[1720011921791,2.03281923,141.67,141.54,7.2347]
[1720011922003,57.27733253,141.68,141.55,17.6606]
[1720011922004,2.03281923,141.66,141.55,17.6606]
[1720011922200,37.94,141.68,141.56,0.17]
[1720011922401,2.03245339,141.67,141.56,0.17]
[1720011922694,37.94,141.68,141.56,0.34]
[1720011922695,2.03245339,141.66,141.56,0.34]
[1720011922900,2.03245339,141.67,141.57,17.6584]
[1720011923096,37.94,141.68,141.58,0.34]
[1720011923398,2.2027077,141.67,141.53,16.4044]
[1720011923598,2.0327077,141.66,141.54,7.0649]
[1720011923798,2.0327077,141.66,141.54,100.0]
[1720011924028,39.9727077,141.7,141.57,6.6374]
[1720011924325,2.03248523,141.69,141.57,6.6374]
[1720011924505,2.03248523,141.68,141.57,6.6374]
[1720011924817,20.0,141.69,141.58,0.34]
[1720011924993,37.94,141.7,141.58,0.34]
[1720011925322,0.17,141.69,141.58,0.17]
[1720011925528,37.94,141.7,141.58,0.17]
[1720011925908,37.94,141.7,141.58,1.58208722]
[1720011926225,20.0,141.69,141.58,1.58208722]
[1720011926620,20.0,141.69,141.58,0.17]
[1720011926818,20.0,141.69,141.58,0.34]
[1720011927004,20.0,141.69,141.58,8.81521376]
[1720011927295,20.0,141.69,141.58,1.75211376]
[1720011927491,20.0,141.69,141.58,8.81501376]
[1720011927711,20.0,141.69,141.58,7.4029]
[1720011928112,20.0,141.69,141.58,0.34]
[1720011928298,20.0,141.69,141.57,6.6374]
[1720011928819,37.94,141.66,141.57,6.6374]
[1720011929018,20.0,141.65,141.57,6.6374]
[1720011933609,19.5,141.65,141.57,6.6374]
[1720011934197,19.5,141.65,141.58,0.17]
[1720011934393,19.5,141.65,141.58,1.75212672]
[1720011934597,19.5,141.65,141.58,0.34]
[1720011935128,19.5,141.65,141.58,0.17]
[1720011935323,19.5,141.65,141.57,6.6374]
[1720011936322,0.17,141.64,141.57,6.6374]
[1720011936625,19.5,141.65,141.57,6.6374]
[1720011937320,0.17,141.64,141.57,6.6374]
[1720011937714,19.5,141.65,141.57,6.6374]
[1720011938226,20.0,141.64,141.57,6.6374]
[1720011938439,20.0,141.67,141.58,0.17]
[1720011938745,20.0,141.67,141.58,0.34]
[1720011939108,20.0,141.67,141.58,0.17]
[1720011939301,20.0,141.67,141.59,15.2185]
[1720011939819,37.94,141.68,141.6,0.17]
[1720011941299,37.94,141.68,141.6,0.34]
[1720011942133,20.0,141.67,141.6,0.34]
[1720011942836,7.0639,141.71,141.61,6.2304]
[1720011943039,45.0039,141.71,141.62,0.34]
[1720011943919,7.0639,141.71,141.62,0.34]
[1720011944332,7.0639,141.71,141.63,15.1944]
[1720011944521,37.94,141.75,141.64,0.34]
[1720011944720,1.9126766,141.74,141.64,0.34]
[1720011944933,1.91269368,141.73,141.64,0.34]
[1720011945135,37.94,141.75,141.64,0.34]
[1720011945451,1.91269231,141.74,141.65,6.4742]
[1720011945627,1.91269231,141.73,141.65,6.4742]
[1720011945821,1.91269231,141.74,141.65,6.4742]
[1720011946028,21.91269231,141.74,141.65,6.4742]
[1720011946231,1.91269231,141.73,141.65,6.4742]
[1720011946436,37.94,141.69,141.63,15.1944]
[1720011946646,20.0,141.68,141.63,15.1944]
[1720011948318,20.0,141.68,141.62,6.4742]
[1720011952322,37.94,141.69,141.63,1.58045488]
[1720011952728,37.94,141.69,141.64,15.5389]
[1720011954224,37.94,141.69,141.65,0.34]
[1720011954429,15.5556,141.77,141.65,0.34]
[1720011954652,28.284157,141.78,141.66,6.1051]
[1720011954824,5.79726408,141.79,141.67,1.75134684]
[1720011955142,44.0451,141.75,141.69,15.6993]
[1720011955645,1.91237752,141.74,141.69,15.6993]
[1720011955829,44.0451,141.75,141.69,15.6993]
[1720011956147,6.1051,141.75,141.69,15.6993]
[1720011956316,37.94,141.71,141.69,15.6993]
[1720011956523,20.0,141.7,141.69,15.6993]
[1720011956730,20.0,141.7,141.66,6.1051]
[1720011959145,20.0,141.66,141.54,126.97106505]
[1720011959324,20.0,141.66,141.54,26.97106505]
[1720011959657,37.94,141.62,141.53,7.0656]
[1720011959835,37.94,141.62,141.52,7.0659]
[1720011960157,37.94,141.62,141.53,17.6632]
[1720011960328,37.94,141.62,141.51,13.2444]
[1720011960329,20.0,141.61,141.51,13.2444]
[1720011960745,20.0,141.61,141.52,7.0659]
[1720011961053,20.0,141.61,141.53,7.0652]
[1720011961293,20.0,141.61,141.52,41.1967]
[1720011961755,20.0,141.61,141.53,7.0656]
[1720011962324,20.0,141.61,141.52,16.4658]
[1720011964847,20.0,141.61,141.53,0.34]
[1720011965237,20.0,141.61,141.52,16.4658]
[1720011965448,37.94,141.58,141.52,16.4658]
[1720011965745,6.1287,141.68,141.52,16.4658]
[1720011965956,37.94,141.64,141.53,17.6637]
[1720011966447,37.94,141.64,141.53,24.729]
[1720011966755,37.94,141.64,141.54,7.2349]
[1720011966959,44.0687,141.68,141.54,7.4049]
[1720011967142,37.94,141.68,141.56,7.064]
[1720011967345,37.94,141.68,141.57,0.34]
[1720011968033,37.94,141.68,141.58,7.063]
[1720011968250,37.94,141.68,141.6,6.1233]
[1720011968849,43.63860886,141.68,141.6,6.1233]
[1720011969764,20.0,141.67,141.6,6.1233]
[1720011971241,26.36602959,141.67,141.6,6.1233]
[1720011971441,20.0,141.67,141.6,6.1233]
[1720011971657,26.36602959,141.67,141.6,6.1233]
[1720011972164,20.0,141.67,141.6,6.1233]
[1720011972867,29.17472959,141.66,141.56,6.5186]
[1720011973041,37.94,141.61,141.52,22.5133]
[1720011973359,20.17,141.6,141.52,6.4762]
[1720011973563,37.94,141.57,141.48,22.2121]
[1720011973793,20.0,141.56,141.48,22.2121]
[1720011975438,26.36602959,141.56,141.48,6.175]
[1720011977658,26.36602959,141.56,141.48,13.243]
[1720011977859,26.36602959,141.56,141.48,6.175]
[1720011978250,26.36602959,141.56,141.49,0.34]
[1720011978849,6.36602959,141.56,141.5,15.8334]
[1720011979055,32.91075595,141.67,141.51,0.34]
[1720011979056,6.36602959,141.61,141.51,0.34]
[1720011979255,37.94,141.64,141.51,17.6661]
[1720011979460,6.0953407,141.63,141.52,1.4128341]
[1720011980093,6.0953407,141.63,141.5,15.8334]
[1720011980293,37.94,141.6,141.45,17.6734]
[1720011980493,6.0953407,141.59,141.46,7.069]
[1720011980791,20.0,141.58,141.46,7.069]
[1720011980995,20.0,141.58,141.45,17.6734]
[1720011980996,26.0953407,141.58,141.47,7.0684]
[1720011981175,26.0953407,141.58,141.46,7.069]
[1720011981488,26.0953407,141.58,141.47,17.6712]
[1720011981699,26.0953407,141.58,141.48,7.0676]
[1720011981873,26.0953407,141.58,141.49,17.6689]
[1720011982286,20.0,141.58,141.51,7.0666]
[1720011982591,20.0,141.59,141.52,0.17]
[1720011982773,20.0,141.59,141.52,0.34]
[1720011982969,20.0,141.6,141.52,0.34]
[1720011983797,26.0953407,141.6,141.53,0.34]
[1720011983988,26.0953407,141.6,141.51,0.34]
[1720011984875,37.94,141.57,141.46,22.1139]
[1720011985072,20.0,141.56,141.46,22.1139]
[1720011985271,20.0,141.56,141.39,135.63048868]
[1720011985272,37.94,141.53,141.42,29.405]
[1720011985474,20.0,141.52,141.42,29.405]
[1720011986080,20.0,141.52,141.42,22.334]
[1720011986304,20.0,141.52,141.38,22.2932]
[1720011986608,6.2653407,141.51,141.39,7.0721]
[1720011986783,20.17,141.5,141.34,26.90768868]
[1720011986986,37.94,141.47,141.35,24.7599]
[1720011987301,20.0,141.46,141.35,24.7599]
[1720011987875,66.36,141.46,141.35,24.7599]
[1720011988803,66.36,141.46,141.36,7.074]
[1720011989097,21.5021,141.45,141.32,18.522738]
[1720011989277,21.5021,141.45,141.34,7.0751]
[1720011989278,20.0,141.44,141.34,7.0751]
[1720011989670,20.0,141.44,141.35,7.0744]
[1720011989671,26.0953407,141.44,141.35,7.0744]
[1720011989873,6.0953407,141.43,141.32,7.908938]
[1720011990090,20.0,141.42,141.32,7.908938]
[1720011990304,20.0,141.42,141.33,7.0755]
[1720011990599,26.0953407,141.42,141.32,0.833238]
[1720011990796,26.0953407,141.42,141.33,7.0752]
[1720011991704,26.0953407,141.42,141.32,0.833238]
[1720011992093,7.38439747,141.41,141.32,0.833238]
[1720011992274,20.0,141.4,141.32,0.833238]
[1720011992711,20.0,141.4,141.33,7.0756]
[1720011992882,20.0,141.4,141.34,0.34]
[1720011994472,20.0,141.4,141.33,0.34]
[1720011994678,20.0,141.4,141.33,7.4156]
[1720011995196,20.0,141.4,141.33,0.34]
[1720011995392,20.0,141.4,141.33,7.4155]
[1720011996320,20.0,141.4,141.33,0.34]
[1720011996810,20.0,141.4,141.32,25.599038]
[1720011996997,20.0,141.4,141.33,1.41504372]
[1720011998420,20.0,141.4,141.34,0.17]
[1720011998589,20.0,141.4,141.33,0.34]
[1720011999713,20.0,141.4,141.33,1.7545726]
[1720011999914,20.0,141.4,141.33,0.34]
[1720012001287,20.0,141.4,141.32,0.833238]
[1720012001514,6.538,141.39,141.32,0.833238]
[1720012001810,35.6364,141.38,141.32,0.833238]
[1720012002517,7.38055772,141.37,141.32,0.833238]
[1720012002690,20.0,141.36,141.32,0.833238]
[1720012007593,26.0953407,141.36,141.32,0.833238]
[1720012007916,6.2653407,141.35,141.32,0.833238]
[1720012008093,20.0,141.34,141.32,0.833238]
[1720012008417,6.0953407,141.33,141.32,0.833238]
[1720012008718,26.0953407,141.33,141.32,0.833238]
[1720012009091,20.0,141.33,141.32,0.833238]
[1720012009291,53.74055772,141.37,141.32,0.833238]
[1720012009516,20.0,141.36,141.32,0.833238]
[1720012009815,7.38055772,141.37,141.32,0.833238]
[1720012011418,20.0,141.36,141.32,0.833238]
[1720012012825,15.6364,141.38,141.32,0.833238]
[1720012012826,7.37321933,141.35,141.32,0.833238]
[1720012013125,20.0,141.34,141.32,0.833238]
[1720012016599,7.37321933,141.35,141.33,0.34]
[1720012016923,15.9379,141.42,141.33,8.83011366]
[1720012017130,7.37061396,141.4,141.33,1.75461366]
[1720012017428,7.37061396,141.4,141.33,19.44271366]
[1720012017722,6.39,141.44,141.34,7.0748]
[1720012017925,13.7602448,141.44,141.35,1.75441553]
[1720012018100,13.7602448,141.44,141.36,1.41441497]
[1720012018304,13.7602448,141.44,141.37,0.34]
[1720012018514,13.7602448,141.44,141.37,1.75442865]
[1720012018709,13.7602448,141.44,141.37,0.34]
[1720012019219,13.7602448,141.44,141.36,1.75435317]
[1720012019825,13.7602448,141.44,141.36,0.17]
[1720012020003,20.0,141.43,141.35,0.34]
[1720012020199,20.0,141.43,141.35,1.75451654]
[1720012021399,20.0,141.43,141.35,0.34]
[1720012021599,20.0,141.43,141.34,0.34]
[1720012021803,20.0,141.43,141.35,0.34]
[1720012022023,20.0,141.43,141.33,0.34]
[1720012022721,7.3702448,141.44,141.37,7.0734]
[1720012022928,7.3702448,141.44,141.38,0.34]
[1720012023525,7.3702448,141.44,141.37,7.4136]
[1720012023830,7.3702448,141.44,141.38,24.7555]
[1720012024024,6.2431,141.48,141.39,0.34]
[1720012024323,7.3701544,141.46,141.39,7.4125]
[1720012024704,7.3701544,141.46,141.39,7.4121]
[1720012024894,7.3701544,141.46,141.4,1.41376729]
[1720012025098,7.3701544,141.46,141.39,36.7812]
[1720012025099,7.3701544,141.46,141.44,7.0699]
[1720012025331,16.1073,141.55,141.45,8.82302934]
[1720012025642,7.37133004,141.53,141.46,1.41317562]
[1720012025798,7.37133004,141.53,141.47,0.34]
[1720012026012,7.37133004,141.53,141.48,1.41317412]
[1720012026238,7.37133004,141.53,141.49,1.75305688]
[1720012026522,7.37133004,141.53,141.49,0.34]
[1720012026719,37.97,141.58,141.49,0.34]
[1720012026927,37.97,141.58,141.48,0.34]
[1720012027133,7.36049454,141.55,141.48,7.408]
[1720012027295,7.0691,141.59,141.48,15.3728]
[1720012027622,7.3629695,141.55,141.48,15.3728]
[1720012027821,21.6214,141.6,141.48,22.4408]
[1720012028023,7.35857632,141.55,141.48,22.4408]
[1720012028408,21.6214,141.6,141.48,15.3728]
[1720012028606,7.35890495,141.55,141.48,22.4408]
[1720012028922,21.6214,141.6,141.48,15.3728]
[1720012029141,21.6214,141.6,141.48,0.34]
[1720012029142,7.35905509,141.55,141.48,0.34]
[1720012029426,21.6214,141.6,141.48,0.34]
[1720012029728,7.35884183,141.55,141.48,0.34]
[1720012029902,21.6214,141.6,141.44,23.5658]
[1720012030097,7.35643398,141.54,141.44,16.4958]
[1720012030433,37.97,141.58,141.44,34.1707]
[1720012030734,7.35777974,141.54,141.44,34.1707]
[1720012031021,20.0,141.57,141.45,7.0692]
[1720012031228,7.35807174,141.54,141.46,7.069]
[1720012031411,20.0,141.57,141.47,7.0685]
[1720012031610,20.0,141.57,141.46,7.069]
[1720012031811,7.35752658,141.54,141.46,7.069]
[1720012032006,20.0,141.57,141.46,7.069]
[1720012032208,7.35788407,141.53,141.47,0.34]
[1720012032528,20.0,141.57,141.47,0.34]
[1720012032731,7.35698615,141.55,141.48,0.17]
[1720012032916,20.0,141.54,141.48,0.17]
[1720012033118,20.0,141.54,141.48,0.34]
[1720012033427,20.0,141.54,141.49,0.17]
[1720012033634,20.0,141.54,141.48,0.17]
[1720012034504,20.0,141.54,141.47,0.17]
[1720012036141,7.35698615,141.55,141.48,17.67]
[1720012036313,7.35698615,141.55,141.49,7.4073]
[1720012036510,7.35698615,141.55,141.51,7.0665]
[1720012036710,7.35698615,141.55,141.52,0.34]
[1720012037229,7.35698615,141.55,141.52,0.17]
[1720012039543,7.35698615,141.55,141.51,0.34]
[1720012039707,7.35698615,141.55,141.52,7.0657]
[1720012039904,7.35698615,141.55,141.53,0.34]
[1720012040118,7.35698615,141.55,141.53,0.17]
[1720012040350,7.35698615,141.55,141.47,6.1704]
[1720012040526,7.35698615,141.55,141.49,7.0675]
[1720012040835,7.35698615,141.55,141.5,7.067]
[1720012041028,7.35698615,141.55,141.49,24.7364]
[1720012041734,7.35698615,141.55,141.5,0.17]
[1720012042035,7.35698615,141.55,141.5,0.34]
[1720012042337,7.35698615,141.55,141.47,6.1704]
[1720012042840,20.0,141.54,141.47,6.1704]
[1720012043715,15.7221,141.56,141.47,6.1704]
[1720012043915,7.3460624,141.54,141.47,6.1704]
[1720012044127,20.0,141.53,141.45,17.6738]
[1720012044329,20.0,141.53,141.11,3.75767362]
[1720012044330,20.0,141.53,141.4,22.1409]
[1720012044740,37.97,141.5,141.39,17.6806]
[1720012044915,20.0,141.49,141.37,13.7168]
[1720012045110,35.1929,141.49,141.37,6.6433]
[1720012045414,6.0583,141.48,141.37,6.6433]
[1720012045608,20.0,141.47,141.39,7.0725]
[1720012045815,20.0,141.47,141.41,7.0716]
[1720012046031,20.0,141.47,141.42,7.0711]
[1720012046347,20.0,141.48,141.41,17.6784]
[1720012046523,20.0,141.48,141.42,7.071]
[1720012046718,20.0,141.5,141.43,7.0705]
[1720012046926,20.0,141.5,141.44,0.17]
[1720012047830,20.0,141.5,141.39,7.0721]
[1720012048028,20.0,141.5,141.38,17.6822]
[1720012048229,20.0,141.5,141.39,1.41392431]
[1720012048444,26.05922959,141.5,141.37,6.6433]
[1720012048742,26.05922959,141.5,141.37,24.3268]
[1720012048951,26.05922959,141.5,141.38,7.073]
[1720012049119,64.02922959,141.5,141.38,7.073]
[1720012050232,64.02922959,141.5,141.39,0.17]
[1720012050433,64.02922959,141.5,141.39,7.4124]
[1720012050643,64.02922959,141.5,141.39,0.34]
[1720012050858,16.4464,141.49,141.34,126.85119563]
[1720012051146,37.97,141.46,141.34,17.6871]
[1720012051318,20.0,141.45,141.37,7.0736]
[1720012051520,20.0,141.45,141.38,7.073]
[1720012051939,20.0,141.48,141.4,7.0719]
[1720012052148,20.0,141.48,141.38,17.6824]
[1720012052317,20.0,141.48,141.41,0.17]
[1720012052516,16.4464,141.49,141.41,0.34]
[1720012052721,6.6163,141.51,141.41,6.7081]
[1720012052937,6.6163,141.51,141.42,17.6768]
[1720012053145,15.3677,141.53,141.44,17.6749]
[1720012053445,7.3460624,141.54,141.46,7.069]
[1720012053665,7.3460624,141.54,141.47,0.34]
[1720012054957,20.0,141.53,141.41,6.3681]
[1720012055155,20.0,141.53,141.42,7.2409]
[1720012055357,20.0,141.53,141.42,0.17]
[1720012055664,7.33676207,141.52,141.42,0.17]
[1720012055945,20.0,141.51,141.42,0.17]
[1720012056557,20.0,141.51,141.42,7.411]
[1720012056935,20.0,141.51,141.4,15.0038]
[1720012057538,22.6758,141.5,141.4,22.0758]
[1720012057752,20.0,141.49,141.4,22.0758]
[1720012057952,20.0,141.49,141.41,7.0714]
[1720012058161,20.0,141.49,141.4,24.7519]
[1720012058455,20.0,141.49,141.38,6.4959]
[1720012058826,20.0,141.49,141.39,17.8512]
[1720012059029,20.0,141.49,141.4,7.072]
[1720012059224,20.0,141.49,141.41,0.17]
[1720012059454,20.0,141.49,141.39,0.17]
[1720012059752,20.0,141.49,141.39,7.2425]
[1720012059961,20.0,141.49,141.39,0.17]
[1720012060138,20.0,141.49,141.41,7.0713]
[1720012060464,20.0,141.49,141.42,0.34]
[1720012061154,7.33676207,141.52,141.42,0.34]
[1720012061332,7.33676207,141.52,141.47,17.6708]
[1720012061529,22.0219,141.54,141.48,0.34]
[1720012063637,20.0,141.53,141.48,0.34]
[1720012064542,20.0,141.53,141.44,24.7443]
[1720012066340,2.30144842,141.52,141.44,24.7443]
[1720012066750,2.30144842,141.52,141.45,0.17]
[1720012066933,2.30144842,141.52,141.45,0.34]
[1720012067135,59.5038,141.51,141.35,28.48700608]
[1720012067440,20.0,141.5,141.38,7.0728]
[1720012067641,20.0,141.5,141.39,7.0726]
[1720012067860,2.30144842,141.49,141.39,7.0726]
[1720012068474,2.30144842,141.49,141.35,21.25]
[1720012068766,2.30144842,141.49,141.34,127.80396769]
[1720012068767,2.30144842,141.49,141.4,7.0717]
[1720012068969,2.30144842,141.49,141.4,24.7514]
[1720012069137,2.30144842,141.49,141.41,0.17]
[1720012069970,2.30144842,141.49,141.41,0.34]
[1720012070341,2.30144842,141.49,141.43,7.0704]
[1720012070664,2.30144842,141.49,141.44,0.34]
[1720012071541,2.30144842,141.49,141.41,6.9112]
[1720012072063,2.30144842,141.49,141.42,7.0711]
[1720012072247,2.30144842,141.49,141.41,24.7504]
[1720012072441,2.30144842,141.49,141.38,17.6819]
[1720012072640,2.30144842,141.49,141.4,7.0719]
[1720012072846,2.30144842,141.49,141.39,7.0724]
[1720012073045,2.30144842,141.49,141.4,7.072]
[1720012073265,2.30144842,141.49,141.38,17.6819]
[1720012073470,2.30144842,141.49,141.39,7.0725]
[1720012073643,2.30144842,141.49,141.4,7.0719]
[1720012073978,2.30144842,141.49,141.38,17.6819]
[1720012073979,2.30144842,141.49,141.39,7.0724]
[1720012074781,2.30144842,141.49,141.4,0.17]
[1720012075073,2.30144842,141.49,141.39,7.0725]
[1720012075379,2.30144842,141.49,141.37,17.6832]
[1720012075938,2.30144842,141.49,141.39,17.6814]
[1720012076174,2.30144842,141.49,141.4,7.0719]
[1720012076359,2.30144842,141.49,141.41,0.17]
[1720012076544,2.30144842,141.49,141.41,7.2416]
[1720012076743,2.30144842,141.49,141.42,0.17]
[1720012077243,2.30144842,141.49,141.41,0.34]
[1720012077643,2.30144842,141.49,141.41,18.019]
[1720012078361,2.30144842,141.49,141.41,0.34]
[1720012079356,2.30144842,141.49,141.42,0.17]
[1720012079661,2.30144842,141.49,141.4,0.34]
[1720012080057,2.30144842,141.49,141.39,0.34]
[1720012080363,2.30144842,141.49,141.39,1.41380716]
[1720012080566,2.30144842,141.49,141.39,7.0725]
[1720012080883,2.30144842,141.49,141.4,17.6799]
[1720012081047,2.30144842,141.49,141.41,7.0713]
[1720012081391,2.30144842,141.49,141.42,17.6775]
[1720012081678,2.30144842,141.49,141.46,17.6726]
[1720012081843,2.30144842,141.49,141.47,1.7533719]
[1720012082171,21.5338,141.51,141.47,1.7533719]
[1720012082385,21.5338,141.51,141.47,0.34]
[1720012083046,21.5338,141.51,141.46,0.34]
[1720012083747,21.5338,141.51,141.47,0.17]
[1720012084071,21.5338,141.51,141.45,25.0829]
[1720012084475,21.5338,141.51,141.45,25.0833]
[1720012084851,28.62963982,141.54,141.46,7.0689]
[1720012085049,28.62963982,141.54,141.47,0.34]
[1720012085267,28.62963982,141.54,141.47,7.4085]
[1720012085867,7.33333982,141.54,141.47,21.59]
[1720012086063,7.33333982,141.54,141.49,24.7358]
[1720012086252,7.33333982,141.54,141.5,1.75080455]
[1720012086452,7.33333982,141.54,141.5,8.81750455]
[1720012086661,7.33333982,141.54,141.5,0.34]
[1720012086868,7.33333982,141.54,141.51,0.17]
[1720012087056,7.33333982,141.54,141.49,7.4076]
[1720012087260,7.33333982,141.54,141.49,0.34]
[1720012088273,7.33333982,141.54,141.49,7.4076]
[1720012088981,7.33333982,141.54,141.49,0.17]
[1720012089184,7.33333982,141.54,141.41,501.05611552]
[1720012089491,7.33333982,141.54,141.46,7.0689]
[1720012089781,7.33333982,141.54,141.46,17.6719]
[1720012089949,7.33333982,141.54,141.43,17.6761]
[1720012090156,16.3398,141.51,141.42,7.4]
[1720012090458,16.3398,141.51,141.43,7.0702]
[1720012090867,16.3398,141.51,141.44,7.0701]
[1720012091070,16.3398,141.51,141.45,17.6735]